bitfinex-derivatives/quotes_SOLF0:USTF0_20250415
["timestamp","ask_amount","ask_price","bid_price","bid_amount"]
[1744716903116,0.04805344,132.3,132.25,28.61465878]
[1744716903516,7.60725344,132.3,132.26,7.5611]
[1744716904522,0.04805344,132.3,132.27,7.5605]
[1744716904921,0.04805344,132.3,132.28,28.56]
[1744716905121,0.04805344,132.3,132.29,7.5597]
[1744716906325,7.5577,132.33,132.3,7.559]
[1744716906515,11.62691985,132.39,132.27,11.62691985]
[1744716906719,40.18691985,132.39,132.28,32.8033]
[1744716907423,40.18691985,132.39,132.3,7.5589]
[1744716907722,0.04924521,132.35,132.32,0.05244416]
[1744716907923,7.5572,132.34,132.32,0.05244416]
[1744716909419,7.5574,132.33,132.32,0.05244416]
[1744716911322,40.18691985,132.33,132.24,28.56]
[1744716911526,11.62691985,132.31,132.24,28.56]
[1744716911728,7.5606,132.28,132.24,28.56]
[1744716912123,7.5606,132.28,132.25,7.5615]
[1744716912318,0.04998742,132.27,132.25,7.61831575]
[1744716912724,0.04998742,132.27,132.26,7.5614]
[1744716913326,28.56,132.33,132.28,7.5598]
[1744716913723,28.56,132.33,132.27,28.56]
[1744716914028,30.512,132.33,132.27,28.56]
[1744716914328,0.04894922,132.31,132.29,0.05077435]
[1744716914522,7.5591,132.3,132.29,0.05077435]
[1744716920723,7.5613,132.27,132.24,28.56]
[1744716921133,11.62691985,132.31,132.24,28.56]
[1744716921633,11.62691985,132.31,132.25,7.5617]
[1744716921828,7.5603,132.28,132.26,0.05036983]
[1744716922233,0.05402135,132.29,132.26,0.05036983]
[1744716922732,7.5608,132.27,132.26,0.05036983]
[1744716925037,7.5605,132.28,132.26,0.05036983]
[1744716925536,7.5605,132.28,132.26,7.61176983]
[1744716926835,0.05402135,132.29,132.26,0.05036983]
[1744716927036,0.05402135,132.29,132.27,28.56]
[1744716927336,7.5588,132.31,132.27,35.84080897]
[1744716927733,28.56,132.33,132.27,35.84080897]
[1744716927934,7.5591,132.31,132.28,7.56]
[1744716928534,7.60700306,132.31,132.28,7.61403129]
[1744716928937,0.04790306,132.31,132.28,0.05403129]
[1744716929640,7.5597,132.29,132.28,0.05403129]
[1744716933138,7.5632,132.23,132.16,359.0]
[1744716933343,28.56,132.26,132.18,28.56]
[1744716933746,7.5645,132.21,132.18,28.56]
[1744716934042,2.1305,132.25,132.18,28.56]
[1744716934241,7.5642,132.22,132.2,0.05746966]
[1744716934441,0.04916829,132.23,132.2,0.05746966]
[1744716934740,7.5637,132.22,132.2,0.05746966]
[1744716935043,0.04916829,132.23,132.2,0.05746966]
[1744716935343,7.5637,132.22,132.2,0.05746966]
[1744716935944,7.5643,132.21,132.2,0.05746966]
[1744716938543,7.564,132.22,132.2,0.05746966]
[1744716938742,0.04916829,132.23,132.2,0.05746966]
[1744716939846,7.5643,132.21,132.2,0.05746966]
[1744716947352,7.5674,132.16,132.13,7.5686]
[1744716947555,11.64914513,132.18,132.07,34.8107]
[1744716947851,28.56,132.17,132.07,46.45984513]
[1744716948051,7.5688,132.14,132.1,7.5706]
[1744716948251,7.5688,132.14,132.07,46.45984513]
[1744716948458,0.054624,132.12,132.1,7.5701]
[1744716948754,0.054624,132.12,132.1,7.61783843]
[1744716948755,0.04978875,132.12,132.1,7.61783843]
[1744716949053,0.04978875,132.12,132.1,28.60773843]
[1744716949653,7.57,132.11,132.1,28.60773843]
[1744716950252,7.57,132.11,132.1,0.04773843]
[1744716950654,7.61948875,132.12,132.1,0.04773843]
[1744716950854,7.61948875,132.12,132.1,7.61783843]
[1744716950855,0.04978875,132.12,132.1,7.61783843]
[1744716951058,0.04978875,132.12,132.1,28.62773843]
[1744716951552,0.04978875,132.12,132.1,36.19803843]
[1744716951753,0.04978875,132.12,132.1,28.62773843]
[1744716953353,0.04978875,132.12,132.11,7.57]
[1744716953858,0.04978875,132.12,132.1,28.62773843]
[1744716954557,0.04978875,132.12,132.1,36.19783843]
[1744716955558,0.04978875,132.12,132.11,7.57]
[1744716955753,0.04978875,132.12,132.1,28.62773843]
[1744716956055,0.04978875,132.12,132.1,36.19803843]
[1744716956253,0.04978875,132.12,132.1,28.62773843]
[1744716957256,7.57,132.11,132.1,28.62773843]
[1744716957855,7.61948875,132.12,132.1,28.62773843]
[1744716958759,7.57,132.11,132.1,28.62773843]
[1744716959056,0.04978875,132.12,132.1,28.62773843]
[1744716959558,7.61958875,132.12,132.1,28.62773843]
[1744716960260,7.57,132.11,132.1,28.62773843]
[1744716961160,7.57,132.11,132.1,0.04773843]
[1744716961361,7.34572709,132.12,132.04,30.6753]
[1744716961561,7.29593834,132.07,132.01,28.58]
[1744716961761,7.29593834,132.05,132.01,28.58]
[1744716962262,7.29593834,132.05,131.98,587.1457]
[1744716962459,0.05317614,132.04,132.02,0.05345683]
[1744716962654,7.29593834,132.03,132.02,0.05345683]
[1744716962860,7.29593834,132.01,131.94,28.58]
[1744716963062,7.29593834,131.99,131.94,28.58]
[1744716963458,7.5772,131.99,131.94,28.58]
[1744716963756,28.58,132.0,131.94,28.58]
[1744716963955,0.0544998,131.98,131.95,0.05431575]
[1744716964863,7.5783,131.97,131.95,0.05431575]
[1744716965159,0.0544998,131.98,131.95,0.05431575]
[1744716965559,7.6322998,131.98,131.95,0.05431575]
[1744716966262,0.0544998,131.98,131.95,0.05431575]
[1744716968059,7.5786,131.96,131.95,0.05431575]
[1744716968864,7.5798,131.94,131.91,36.1813]
[1744716969065,28.6,131.97,131.91,36.1813]
[1744716969664,28.6,131.97,131.89,6.2336]
[1744716970060,7.63577466,131.94,131.92,0.05480075]
[1744716970966,7.5803,131.93,131.92,0.05480075]
[1744716974866,11.70589564,131.93,131.85,32.8328]
[1744716975065,15.94839564,131.93,131.85,32.8328]
[1744716975262,11.70589564,131.91,131.82,30.734]
[1744716975463,28.6,131.9,131.82,30.734]
[1744716975762,28.6,131.9,131.84,7.5854]
[1744716976066,0.05057334,131.87,131.85,0.05792215]
[1744716976467,7.63467334,131.87,131.85,0.05792215]
[1744716977265,0.05057334,131.87,131.85,0.05792215]
[1744716977862,0.05057334,131.87,131.86,7.5844]
[1744716978368,32.8625,131.93,131.89,7.5825]
[1744716978672,40.32589564,131.95,131.89,7.5825]
[1744716978864,7.5806,131.93,131.86,2.0164]
[1744716979372,40.32589564,131.95,131.86,2.0164]
[1744716979673,0.04809826,131.91,131.88,0.05727926]
[1744716980662,0.04809826,131.91,131.89,7.5824]
[1744716981366,0.04809826,131.91,131.9,7.5821]
[1744716981768,0.04809826,131.91,131.89,7.5823]
[1744716981968,0.04809826,131.91,131.88,28.67727926]
[1744716982471,0.04809826,131.91,131.9,7.5821]
[1744716983072,0.04809826,131.91,131.88,28.67727926]
[1744716983267,0.04809826,131.91,131.88,0.05727926]
[1744716983468,7.5824,131.9,131.88,0.05727926]
[1744716983772,0.04809826,131.91,131.82,32.7522]
[1744716983773,40.32589564,131.89,131.82,32.7522]
[1744716984068,7.5841,131.87,131.82,32.7522]
[1744716984468,40.32589564,131.89,131.82,32.7522]
[1744716984675,36.2028,131.89,131.82,32.7522]
[1744716984866,0.04766679,131.87,131.84,0.053569]
[1744716985174,0.04766679,131.87,131.86,7.5844]
[1744716989283,0.04766679,131.87,131.85,7.5846]
[1744716989678,0.04766679,131.87,131.84,0.053569]
[1744716989879,7.5844,131.86,131.84,0.053569]
[1744716990277,0.04766679,131.87,131.84,0.053569]
[1744716990576,7.63166679,131.87,131.84,7.639069]
[1744716991177,0.04766679,131.87,131.84,7.639069]
[1744716991384,0.04766679,131.87,131.84,0.053569]
[1744716991883,7.5846,131.86,131.84,0.053569]
[1744716994885,36.2249,131.85,131.84,0.053569]
[1744716995084,7.32877867,131.83,131.74,7.32877867]
[1744716995284,28.64,131.82,131.74,9.43527867]
[1744716995486,28.64,131.82,131.73,9.44267867]
[1744716995687,28.64,131.82,131.74,2.1065]
[1744716995987,7.5876,131.81,131.77,7.5893]
[1744716996194,0.05368621,131.79,131.77,7.64658749]
[1744716996385,0.05368621,131.79,131.77,0.05728749]
[1744716996890,0.05368621,131.79,131.78,7.589]
[1744716997793,0.05368621,131.79,131.77,0.05728749]
[1744716998091,7.589,131.78,131.77,0.05728749]
[1744717000513,7.5911,131.75,131.72,28.64]
[1744717000696,35.94877867,131.77,131.71,7.5927]
[1744717000895,35.94877867,131.77,131.7,2.0064]
[1744717001193,7.5911,131.75,131.71,7.5927]
[1744717001386,35.94877867,131.77,131.71,7.5927]
[1744717001592,7.32877867,131.75,131.7,2.0064]
[1744717001790,7.5916,131.74,131.73,0.05486186]
[1744717002893,14.96940657,131.75,131.73,0.05486186]
[1744717003094,0.0496279,131.75,131.73,0.05486186]
[1744717003998,0.0496279,131.75,131.74,7.5913]
[1744717004496,0.0496279,131.75,131.73,0.05486186]
[1744717004497,0.0496279,131.75,131.73,7.64646186]
[1744717004692,0.0496279,131.75,131.73,0.05486186]
[1744717005000,36.2313,131.74,131.73,0.05486186]
[1744717005390,28.64,131.74,131.65,3.28903435]
[1744717005591,7.5936,131.7,131.65,30.6079]
[1744717005995,7.5936,131.7,131.67,7.5949]
[1744717006297,7.32877867,131.72,131.65,30.6079]
[1744717006595,0.0573669,131.7,131.68,7.5943]
[1744717006795,0.0573669,131.7,131.68,36.2343]
[1744717007198,0.0573669,131.7,131.67,0.05145866]
[1744717007501,7.5956,131.67,131.6,28.64]
[1744717007693,7.5956,131.67,131.63,7.5973]
[1744717007998,7.5964,131.66,131.61,2.0285]
[1744717008296,11.75293177,131.69,131.61,2.0285]
[1744717008599,0.04881479,131.65,131.62,0.04842443]
[1744717008999,0.04881479,131.65,131.63,36.2374]
[1744717009697,0.04881479,131.65,131.64,7.597]
[1744717010501,6.1175,131.73,131.63,28.64]
[1744717011096,11.75293177,131.72,131.63,28.64]
[1744717011401,7.5939,131.7,131.63,28.64]
[1744717011600,0.05168404,131.69,131.67,7.5952]
[1744717011898,0.05168404,131.69,131.67,36.2352]
[1744717012194,0.05168404,131.69,131.68,7.5947]
[1744717012398,11.75293177,131.76,131.67,30.6074]
[1744717012599,11.75293177,131.76,131.67,34.6165]
[1744717012800,7.5922,131.73,131.69,7.5936]
[1744717013101,11.75293177,131.76,131.7,28.66]
[1744717013399,0.05268192,131.74,131.72,0.05240509]
[1744717014001,7.592,131.73,131.72,0.05240509]
[1744717014302,0.05268192,131.74,131.72,0.05240509]
[1744717014599,7.64438192,131.74,131.72,0.05240509]
[1744717014803,11.80561369,131.74,131.72,0.05240509]
[1744717015001,7.5918,131.73,131.72,0.05240509]
[1744717015303,11.80561369,131.74,131.68,28.66]
[1744717015998,7.594,131.7,131.68,28.66]
[1744717016398,7.65162242,131.7,131.68,28.71288672]
[1744717016601,0.05762242,131.7,131.68,28.71288672]
[1744717016904,11.75293177,131.82,131.69,11.75293177]
[1744717017093,11.75293177,131.84,131.73,11.75293177]
[1744717017299,11.75293177,131.84,131.74,30.7844]
[1744717017603,2.1612,131.85,131.74,30.7844]
[1744717017804,0.0524327,131.81,131.79,7.588]
[1744717018102,0.0524327,131.81,131.79,0.05206407]
[1744717018303,0.0524327,131.81,131.8,7.5878]
[1744717018605,177.95726878,131.87,131.79,19.38499584]
[1744717018910,177.95726878,131.87,131.85,7.5848]
[1744717019204,177.95726878,131.87,131.85,28.64]
[1744717019506,177.95726878,131.87,131.86,7.5844]
[1744717019706,147.24207635,131.88,131.85,48.02190932]
[1744717019905,116.08137635,131.88,131.87,7.5838]
[1744717020107,11.75293177,131.96,131.85,40.44190932]
[1744717020306,5.955,131.97,131.87,11.75293177]
[1744717020502,3.9939,131.97,131.91,11.75293177]
[1744717020703,3.9939,131.97,131.92,28.64]
[1744717020904,0.05149269,131.95,131.93,11.80753419]
[1744717021103,7.5758,132.01,131.93,11.75293177]
[1744717021305,191.33113158,132.02,131.92,28.64]
[1744717021504,0.0567602,131.98,131.96,0.0501198]
[1744717021808,7.578,131.97,131.96,0.0501198]
[1744717022009,11.80969197,131.98,131.92,28.64]
[1744717022210,11.75293177,131.98,131.92,28.64]
[1744717023010,0.0509124,131.96,131.94,0.05222715]
[1744717023215,11.80384417,131.96,131.92,28.64]
[1744717023509,7.5798,131.94,131.9,546.18]
[1744717023904,2.1175,131.95,131.9,546.18]
[1744717024105,2.1175,131.95,131.9,553.7621]
[1744717024306,0.0493245,131.94,131.91,0.05565318]
[1744717024509,0.0493245,131.94,131.92,28.62]
[1744717024905,2.0886,132.01,131.93,11.75293177]
[1744717025606,7.5773,131.99,131.93,11.75293177]
[1744717026012,7.5773,131.99,131.94,7.5793]
[1744717026314,0.0486557,131.97,131.95,28.67760686]
[1744717027113,0.0486557,131.97,131.95,36.25660686]
[1744717027311,0.0486557,131.97,131.95,28.67760686]
[1744717027613,11.75293177,131.96,131.87,28.62]
[1744717027907,7.5813,131.92,131.87,28.62]
[1744717028106,11.75293177,131.94,131.87,28.62]
[1744717028304,2.0947,131.95,131.87,28.62]
[1744717028504,9.6743,131.95,131.87,40.37293177]
[1744717028709,0.04810242,131.92,131.91,7.5811]
[1744717028910,0.05489915,131.93,131.91,28.82]
[1744717029106,11.75293177,131.98,131.91,28.82]
[1744717029413,0.05780011,131.96,131.93,0.05410656]
[1744717030016,11.81073188,131.96,131.93,0.05410656]
[1744717030514,11.81073188,131.96,131.89,7.5826]
[1744717030815,11.81073188,131.96,131.89,28.82]
[1744717031016,7.5813,131.92,131.89,28.82]
[1744717031312,40.57293177,131.96,131.89,28.82]
[1744717031614,0.05837525,131.94,131.91,0.05770485]
[1744717031809,0.05837525,131.94,131.91,0.05044669]
[1744717032713,11.81130702,131.94,131.91,0.05044669]
[1744717033016,2.0879,131.93,131.83,904.86]
[1744717033317,13.76573177,131.92,131.84,28.82]
[1744717033715,7.5828,131.89,131.85,7.5846]
[1744717033916,0.05678701,131.88,131.86,0.05620117]
[1744717034216,7.64008701,131.88,131.86,0.05620117]
[1744717034414,0.05678701,131.88,131.86,0.05620117]
[1744717034608,0.05678701,131.88,131.87,28.82]
[1744717034810,0.05678701,131.88,131.87,36.4038]
[1744717035005,0.00538701,131.88,131.87,36.4038]
[1744717036511,0.00538701,131.88,131.87,7.5838]
[1744717036715,0.00538701,131.88,131.87,28.82]
[1744717037614,0.00538701,131.88,131.87,36.4038]
[1744717037910,0.00538701,131.88,131.87,28.82]
[1744717038120,0.00538701,131.88,131.86,0.05620117]
[1744717038418,0.00538701,131.88,131.87,36.4038]
[1744717038720,0.00538701,131.88,131.87,28.82]
[1744717040119,0.00538701,131.88,131.87,36.4038]
[1744717040314,0.00538701,131.88,131.86,0.05620117]
[1744717040518,0.00538701,131.88,131.87,28.82]
[1744717041720,0.00538701,131.88,131.87,36.4038]
[1744717042720,2.0879,131.93,131.87,40.57293177]
[1744717043118,9.6685,131.93,131.87,40.57293177]
[1744717043517,9.6685,131.93,131.9,7.5817]
[1744717043723,9.6685,131.93,131.91,28.82]
[1744717043915,9.6685,131.93,131.92,7.5809]
[1744717043916,2.14415978,131.93,131.92,7.5809]
[1744717045820,0.05625978,131.93,131.92,7.5809]
[1744717046026,75.6378,132.1,131.92,553.3]
[1744717046027,574.6,132.05,131.92,553.3]
[1744717046322,11.75293177,132.04,131.93,11.75293177]
[1744717046621,574.6,132.05,131.94,28.82]
[1744717047016,0.05258001,132.01,131.98,0.05643157]
[1744717047220,7.5774,131.99,131.98,0.05643157]
[1744717047421,0.05258001,132.01,131.98,0.05643157]
[1744717048115,7.5769,132.0,131.98,0.05643157]
[1744717048822,7.5769,131.99,131.98,0.05643157]
[1744717049221,7.5767,132.0,131.98,0.05643157]
[1744717049417,0.05258001,132.01,131.98,0.05643157]
[1744717049926,7.62878001,132.01,131.98,0.05643157]
[1744717050123,0.05258001,132.01,131.98,0.05643157]
[1744717050527,7.5769,131.99,131.98,0.05643157]
[1744717051631,7.5775,131.98,131.97,28.82]
[1744717051831,0.05258001,132.01,131.94,28.82]
[1744717052129,7.5778,131.98,131.94,28.82]
[1744717052336,7.5778,131.98,131.95,7.5789]
[1744717052639,0.05784854,131.98,131.95,0.05426618]
[1744717052936,0.05784854,131.98,131.97,7.578]
[1744717053232,0.05784854,131.98,131.97,36.398]
[1744717056236,4.854e-05,131.98,131.97,48.15093177]
[1744717056642,40.55293177,132.09,132.01,7.5755]
[1744717056842,40.55293177,132.09,132.02,28.8]
[1744717057030,7.5752,132.02,132.01,28.8]
[1744717057538,7.5749,132.03,132.01,28.8]
[1744717057938,7.62963038,132.03,132.01,28.85422928]
[1744717058238,0.05473038,132.03,132.01,36.42972928]
[1744717058639,0.05473038,132.03,132.01,28.85422928]
[1744717059242,0.05473038,132.03,132.02,7.5752]
[1744717060040,7.5721,132.08,132.05,7.5731]
[1744717060244,7.5721,132.08,132.06,28.7]
[1744717060642,7.5723,132.07,132.06,28.7]
[1744717061445,7.62781852,132.08,132.06,28.7]
[1744717061640,0.05581852,132.08,132.06,28.7]
[1744717062245,7.5723,132.07,132.06,28.7]
[1744717069449,7.62781852,132.08,132.06,28.7]
[1744717069751,0.05581852,132.08,132.06,28.7]
[1744717070954,7.62781852,132.08,132.06,28.7]
[1744717071552,7.5723,132.07,132.06,28.7]
[1744717071951,0.05581852,132.08,132.06,28.7]
[1744717072152,7.62781852,132.08,132.06,28.7]
[1744717073155,7.62761852,132.08,132.06,36.2727]
[1744717073355,7.62761852,132.08,132.06,28.7]
[1744717073556,0.05581852,132.08,132.06,28.7]
[1744717073751,7.5729,132.06,132.05,0.05837636]
[1744717073947,0.05581852,132.08,132.05,0.05837636]
[1744717074363,7.5726,132.07,132.05,0.05837636]
[1744717074658,0.05581852,132.08,132.05,0.05837636]
[1744717074959,7.5723,132.07,132.05,0.05837636]
[1744717076059,7.5723,132.07,132.05,7.63177636]
[1744717076357,7.5723,132.07,132.05,0.05837636]
[1744717076757,7.5723,132.07,132.05,7.63177636]
[1744717077057,7.62781852,132.08,132.05,7.63177636]
[1744717077258,7.62781852,132.08,132.05,0.05837636]
[1744717077453,0.05581852,132.08,132.05,7.36078607]
[1744717077659,0.05581852,132.08,132.07,7.30240971]
[1744717077855,0.05581852,132.08,132.07,36.00240971]
[1744717078153,0.05581852,132.08,132.07,43.57470971]
[1744717078453,7.5697,132.12,132.09,7.5707]
[1744717078757,28.7,132.15,132.07,36.00240971]
[1744717078955,7.5703,132.11,132.08,7.5712]
[1744717079458,7.5703,132.11,132.07,36.00240971]
[1744717079658,7.62313414,132.11,132.08,7.62518555]
[1744717079859,0.05283414,132.11,132.08,0.05358555]
[1744717080556,7.5712,132.09,132.08,0.05358555]
[1744717083358,0.05283414,132.11,132.08,0.05358555]
[1744717083561,0.05283414,132.11,132.09,7.30240971]
[1744717083756,0.05283414,132.11,132.1,36.2506]
[1744717084156,0.05283414,132.11,132.1,28.68]
[1744717084561,7.62283414,132.11,132.1,25.4413]
[1744717085764,7.5678,132.15,132.1,32.74370971]
[1744717085961,7.30240971,132.2,132.1,32.74370971]
[1744717086255,7.5674,132.16,132.12,7.5691]
[1744717086866,0.05260756,132.15,132.13,0.05801417]
[1744717087167,0.05260756,132.15,132.13,28.73801417]
[1744717087369,0.05260756,132.15,132.14,7.30240971]
[1744717087561,0.05260756,132.15,132.13,36.30641417]
[1744717087867,0.05260756,132.15,132.13,28.73801417]
[1744717088166,0.05260756,132.15,132.14,7.5683]
[1744717090662,0.05260756,132.15,132.13,11.72579944]
[1744717090865,0.05260756,132.15,132.14,28.58]
[1744717091564,0.05260756,132.15,132.14,36.1483]
[1744717091965,0.05260756,132.15,132.13,0.05801417]
[1744717092270,7.5683,132.14,132.13,0.05801417]
[1744717094071,7.5689,132.13,132.12,28.56]
[1744717094274,11.66778527,132.14,132.07,28.56]
[1744717094468,40.22778527,132.14,132.07,28.56]
[1744717094770,40.22778527,132.14,132.03,8.84227295]
[1744717094771,7.572,132.08,132.04,28.56]
[1744717095171,0.0497161,132.07,132.06,7.5728]
[1744717096971,0.0497161,132.07,132.05,7.6217763]
[1744717097366,0.0497161,132.07,132.05,0.0485763]
[1744717098473,7.5729,132.06,132.05,0.0485763]
[1744717098872,0.0497161,132.07,132.0,28.58]
[1744717099073,40.24778527,132.08,132.0,28.58]
[1744717099673,7.5749,132.03,132.0,36.156]
[1744717099971,0.054745,132.03,132.0,28.63309198]
[1744717100173,7.5757,132.01,132.0,28.63309198]
[1744717100372,7.5757,132.01,132.0,0.05309198]
[1744717100566,0.054745,132.03,132.0,0.05309198]
[1744717101367,0.054745,132.03,131.95,573.5]
[1744717101568,11.66778527,132.04,131.95,573.5]
[1744717101772,11.66778527,132.04,131.96,7.5781]
[1744717102070,11.66778527,132.04,131.95,573.5]
[1744717102273,7.5762,132.01,131.97,7.5778]
[1744717102462,7.6247399,132.01,131.98,0.05573296]
[1744717102769,0.0485399,132.01,131.98,7.63293296]
[1744717102970,0.0485399,132.01,131.98,36.21293296]
[1744717103372,7.6247399,132.01,131.98,28.63573296]
[1744717103573,0.0485399,132.01,131.98,28.63573296]
[1744717103872,0.0485399,132.01,131.98,0.05573296]
[1744717104073,0.0485399,132.01,131.95,28.58]
[1744717104670,7.5785,131.97,131.95,28.58]
[1744717105174,7.62850478,131.97,131.95,28.63338423]
[1744717105376,7.62850478,131.97,131.95,0.05338423]
[1744717105574,7.5786,131.96,131.95,0.05338423]
[1744717105773,0.05000478,131.97,131.95,0.05338423]
[1744717106377,28.58,132.05,131.96,28.58]
[1744717106577,40.24778527,132.08,131.97,11.66778527]
[1744717106874,7.5725,132.07,132.03,7.5743]
[1744717107075,28.58,132.08,132.02,28.58]
[1744717107572,7.62691514,132.06,132.04,0.05249242]
[1744717108971,0.05371514,132.06,132.04,0.05249242]
[1744717109372,7.62691514,132.06,132.04,0.05249242]
[1744717109674,0.05371514,132.06,132.04,0.05249242]
[1744717109973,0.05371514,132.06,132.05,28.58]
[1744717110674,28.58,132.14,132.05,40.24778527]
[1744717110875,28.58,132.14,132.05,28.58]
[1744717111074,7.5703,132.11,132.07,7.5718]
[1744717111675,0.05840023,132.1,132.08,0.05152234]
[1744717112677,0.05840023,132.1,132.08,7.62322234]
[1744717112976,0.05840023,132.1,132.08,28.63152234]
[1744717114173,7.62930023,132.1,132.08,28.63152234]
[1744717114673,7.62930023,132.1,132.08,0.05152234]
[1744717114975,11.66778527,132.09,131.98,28.58]
[1744717115179,11.66778527,132.07,131.98,28.58]
[1744717115381,28.58,132.07,131.98,28.58]
[1744717115775,7.5732,132.06,132.02,7.5748]
[1744717115980,0.05124928,132.04,132.02,36.1548]
[1744717116980,0.05124928,132.04,132.01,0.04887468]
[1744717117582,7.62554928,132.04,132.01,0.04887468]
[1744717118377,7.5747,132.03,132.01,0.04887468]
[1744717118572,0.05124928,132.04,132.01,0.04887468]
[1744717119073,7.5752,132.02,132.01,0.04887468]
[1744717120386,0.05124928,132.04,132.01,0.04887468]
[1744717120885,7.5752,132.02,132.01,0.04887468]
[1744717121285,0.05124928,132.04,131.99,28.58]
[1744717121488,7.576,132.01,131.99,28.58]
[1744717122482,7.63418782,132.01,131.99,28.6359712]
[1744717123483,7.5763,132.0,131.99,0.0559712]
[1744717123686,0.05818782,132.01,131.96,28.58]
[1744717123892,7.578,131.97,131.96,28.58]
[1744717125292,7.6293582,131.98,131.96,28.58]
[1744717125893,0.0516582,131.98,131.96,28.58]
[1744717126489,7.578,131.97,131.95,0.05368094]
[1744717132090,7.5786,131.96,131.95,0.05368094]
[1744717133499,7.31654155,131.97,131.9,28.6]
[1744717133898,7.31654155,131.95,131.9,28.6]
[1744717134099,7.5806,131.93,131.9,28.6]
[1744717134599,7.63334216,131.93,131.9,28.6]
[1744717134800,7.5809,131.92,131.9,28.6]
[1744717135501,7.5809,131.92,131.9,36.182]
[1744717136103,7.63324216,131.93,131.9,36.182]
[1744717136302,0.05274216,131.93,131.9,28.6]
[1744717137002,7.5813,131.92,131.9,28.6]
[1744717137199,0.05274216,131.93,131.87,28.6]
[1744717137401,7.5826,131.9,131.87,28.6]
[1744717137901,7.5826,131.9,131.87,36.1835]
[1744717138102,7.6305026,131.91,131.87,28.6]
[1744717138304,0.0488026,131.91,131.87,28.6]
[1744717138504,7.6308026,131.91,131.88,7.5831]
[1744717138903,0.0488026,131.91,131.87,28.6]
[1744717139603,0.0488026,131.91,131.88,7.5832]
[1744717139802,7.5821,131.9,131.88,7.5832]
[1744717140509,0.0488026,131.91,131.89,7.5825]
[1744717140906,0.0488026,131.91,131.87,28.6]
[1744717141205,7.6306026,131.91,131.88,7.583]
[1744717141805,7.5821,131.9,131.88,7.583]
[1744717142007,7.5821,131.9,131.87,36.1835]
[1744717143108,7.6305026,131.91,131.88,7.5831]
[1744717143406,0.0488026,131.91,131.87,28.6]
[1744717143706,0.0488026,131.91,131.89,7.5823]
[1744717144609,11.71242448,132.07,131.9,585.97242448]
[1744717144803,11.71242448,132.07,131.96,11.71242448]
[1744717145103,28.6,132.08,131.97,28.6]
[1744717145407,28.6,132.08,131.98,11.71242448]
[1744717145606,0.05398667,132.04,132.02,0.04790541]
[1744717146009,11.76641115,132.04,131.97,28.6]
[1744717146208,11.71242448,132.04,131.97,28.6]
[1744717146808,11.71242448,132.01,131.89,11.71242448]
[1744717147008,0.05408102,131.97,131.91,28.6]
[1744717147209,0.05408102,131.97,131.91,40.31242448]
[1744717147809,0.05408102,131.97,131.91,28.6]
[1744717148305,7.63238102,131.97,131.91,28.6]
[1744717148505,0.05408102,131.97,131.91,28.6]
[1744717148910,0.05408102,131.97,131.95,7.5788]
[1744717149411,7.5787,131.96,131.94,28.6]
[1744717150005,7.63238102,131.97,131.94,28.6]
[1744717150213,0.05408102,131.97,131.94,28.6]
[1744717150517,0.05408102,131.97,131.95,7.5787]
[1744717150716,0.05408102,131.97,131.94,28.6]
[1744717151104,0.05408102,131.97,131.96,7.5786]
[1744717152508,0.00538031,131.97,131.96,7.5786]
[1744717153720,28.6,132.08,132.02,7.5749]
[1744717154813,0.04943143,132.06,132.04,0.05046322]
[1744717155019,7.5737,132.05,132.04,0.05046322]
[1744717157421,7.62253143,132.06,132.04,0.05046322]
[1744717158524,7.5734,132.05,132.04,0.05046322]
[1744717161631,7.62253143,132.06,132.04,0.05046322]
[1744717162226,0.04943143,132.06,132.04,0.05046322]
[1744717162724,0.04943143,132.06,132.05,7.5734]
[1744717162926,0.04943143,132.06,132.04,0.05046322]
[1744717163428,0.04943143,132.06,132.04,7.62426322]
[1744717163627,0.04943143,132.06,132.04,0.05046322]
[1744717164028,0.04943143,132.06,132.05,7.5734]
[1744717166026,0.04943143,132.06,132.05,19.28582448]
[1744717166931,40.29242448,132.17,132.1,7.5704]
[1744717167227,7.5681,132.15,132.09,40.29242448]